[Event "January 9 Early 2024"]
[Site "https://www.chess.com"]
[Date "2024.01.11"]
[Round "7"]
[White "Crocker, Philip J"]
[Black "Thake, Conrad"]
[Result "1-0"]
[Board "105"]
[TimeControl "180+1"]
[WhiteFideId "403180"]
[BlackFideId "5602947"]
[WhiteElo "2088"]
[BlackElo "1846"]
[WhiteTeam "ENG"]
[BlackTeam "MLT"]
[WhiteClock "0:00:52"]
[BlackClock "0:00:02"]

1. d4 {[%clk 0:03:00]}  Nf6 {[%clk 0:02:53]} 2. Bg5 {[%clk 0:03:00]}  b6 {[%clk 0:02:50]} 3. Nc3 {[%clk 0:02:58]}  Bb7 {[%clk 0:02:50]} 4. f3 {[%clk 0:02:58]}  e6 {[%clk 0:02:39]} 5. e4 {[%clk 0:02:58]}  Be7 {[%clk 0:02:36]} 6. Nge2 {[%clk 0:02:56]}  d5 {[%clk 0:02:35]} 7. e5 {[%clk 0:02:53]}  Nfd7 {[%clk 0:02:33]} 8. Bxe7 {[%clk 0:02:51]}  Qxe7 {[%clk 0:02:33]} 9. Qd2 {[%clk 0:02:50]}  Nc6 {[%clk 0:02:30]} 10. h4 {[%clk 0:02:46]}  O-O-O {[%clk 0:02:29]} 11. O-O-O {[%clk 0:02:45]}  f6 {[%clk 0:02:26]} 12. f4 {[%clk 0:02:44]}  fxe5 {[%clk 0:02:19]} 13. fxe5 {[%clk 0:02:43]}  Rdf8 {[%clk 0:02:14]} 14. Nf4 {[%clk 0:02:42]}  Qf7 {[%clk 0:02:04]} 15. g3 {[%clk 0:02:42]}  Ne7 {[%clk 0:01:48]} 16. Bh3 {[%clk 0:02:37]}  Nf5 {[%clk 0:01:42]} 17. Qd3 {[%clk 0:02:27]}  c5 {[%clk 0:01:28]} 18. Bxf5 {[%clk 0:02:12]}  Qxf5 {[%clk 0:01:19]} 19. Qxf5 {[%clk 0:02:10]}  exf5 {[%clk 0:01:18]} 20. Nfxd5 {[%clk 0:02:03]}  cxd4 {[%clk 0:01:16]} 21. Rxd4 {[%clk 0:01:57]}  Nxe5 {[%clk 0:01:16]} 22. Rf1 {[%clk 0:01:47]}  Rf7 {[%clk 0:00:53]} 23. Rxf5 {[%clk 0:01:42]}  Bxd5 {[%clk 0:00:46]} 24. Nxd5 {[%clk 0:01:40]}  Rxf5 {[%clk 0:00:34]} 25. Ne7+ {[%clk 0:01:39]}  Kc7 {[%clk 0:00:32]} 26. Nxf5 {[%clk 0:01:39]}  g6 {[%clk 0:00:30]} 27. Ne3 {[%clk 0:01:27]}  Rf8 {[%clk 0:00:30]} 28. Ng4 {[%clk 0:01:19]}  Rf1+ {[%clk 0:00:27]} 29. Kd2 {[%clk 0:01:18]}  Nf3+ {[%clk 0:00:27]} 30. Ke2 {[%clk 0:01:18]}  Nxd4+ {[%clk 0:00:27]} 31. Kxf1 {[%clk 0:01:17]}  Nxc2 {[%clk 0:00:27]} 32. Nf6 {[%clk 0:01:14]}  Nb4 {[%clk 0:00:24]} 33. Nxh7 {[%clk 0:01:10]}  Nxa2 {[%clk 0:00:21]} 34. Nf8 {[%clk 0:01:10]}  Nc1 {[%clk 0:00:16]} 35. Nxg6 {[%clk 0:01:08]}  Nd3 {[%clk 0:00:17]} 36. h5 {[%clk 0:01:03]}  Nc5 {[%clk 0:00:03]} 37. h6 {[%clk 0:01:01]}  Ne4 {[%clk 0:00:02]} 38. h7 {[%clk 0:00:57]}  Nxg3+ {[%clk 0:00:02]} 39. Ke1 {[%clk 0:00:52]} 1-0

[Event "January 9 Early 2024"]
[Site "https://www.chess.com"]
[Date "2024.01.11"]
[Round "7"]
[White "Aravindh, Chithambaram VR."]
[Black "Grischuk, Alexander"]
[Result "0-1"]
[Board "106"]
[TimeControl "180+1"]
[WhiteFideId "5072786"]
[BlackFideId "4126025"]
[WhiteElo "2928"]
[BlackElo "3071"]
[WhiteTeam "IND"]
[BlackTeam "RUS"]
[WhiteClock "0:00:01"]
[BlackClock "0:00:47"]

1. b3 {[%clk 0:02:59]}  d5 {[%clk 0:02:59]} 2. Bb2 {[%clk 0:02:59]}  Nf6 {[%clk 0:02:59]} 3. Nf3 {[%clk 0:03:00]}  Bf5 {[%clk 0:02:59]} 4. e3 {[%clk 0:03:00]}  e6 {[%clk 0:02:58]} 5. c4 {[%clk 0:03:00]}  Nbd7 {[%clk 0:02:54]} 6. Nc3 {[%clk 0:02:59]}  h6 {[%clk 0:02:45]} 7. d4 {[%clk 0:02:55]}  c6 {[%clk 0:02:44]} 8. Bd3 {[%clk 0:02:53]}  Bd6 {[%clk 0:02:44]} 9. Bxf5 {[%clk 0:02:51]}  exf5 {[%clk 0:02:44]} 10. O-O {[%clk 0:02:49]}  Qe7 {[%clk 0:02:40]} 11. Qd3 {[%clk 0:02:40]}  Qe6 {[%clk 0:02:31]} 12. cxd5 {[%clk 0:02:37]}  Nxd5 {[%clk 0:02:26]} 13. Nxd5 {[%clk 0:02:33]}  Qxd5 {[%clk 0:02:19]} 14. Rae1 {[%clk 0:01:59]}  O-O {[%clk 0:02:14]} 15. Nh4 {[%clk 0:01:59]}  g6 {[%clk 0:02:08]} 16. f3 {[%clk 0:01:49]}  Rae8 {[%clk 0:01:47]} 17. g3 {[%clk 0:01:42]}  Re7 {[%clk 0:01:37]} 18. Ng2 {[%clk 0:01:15]}  Rfe8 {[%clk 0:01:36]} 19. Qc2 {[%clk 0:01:07]}  h5 {[%clk 0:01:20]} 20. Re2 {[%clk 0:00:53]}  Nf6 {[%clk 0:01:17]} 21. Bc3 {[%clk 0:00:25]}  h4 {[%clk 0:01:06]} 22. gxh4 {[%clk 0:00:12]}  Nh5 {[%clk 0:01:06]} 23. Bb2 {[%clk 0:00:07]}  Nf4 {[%clk 0:00:49]} 24. Nxf4 {[%clk 0:00:07]}  Bxf4 {[%clk 0:00:48]} 25. e4 {[%clk 0:00:08]}  fxe4 {[%clk 0:00:49]} 26. fxe4 {[%clk 0:00:09]}  Rxe4 {[%clk 0:00:49]} 27. Rxe4 {[%clk 0:00:05]}  Rxe4 {[%clk 0:00:50]} 28. Qc4 {[%clk 0:00:01]}  Be3+ {[%clk 0:00:46]} 29. Kh1 {[%clk 0:00:02]}  Rf4+ {[%clk 0:00:45]} 30. Qxd5 {[%clk 0:00:01]}  Rxf1+ {[%clk 0:00:45]} 31. Kg2 {[%clk 0:00:02]}  Rf2+ {[%clk 0:00:46]} 32. Kg3 {[%clk 0:00:01]}  cxd5 {[%clk 0:00:47]} 0-1

[Event "January 9 Early 2024"]
[Site "https://www.chess.com"]
[Date "2024.01.11"]
[Round "7"]
[White "Mekhitarian, Krikor Sevag"]
[Black "Liu, Casper"]
[Result "0-1"]
[Board "114"]
[TimeControl "180+1"]
[WhiteFideId "2107660"]
[BlackFideId "1454153"]
[WhiteElo "2731"]
[BlackElo "2497"]
[WhiteTeam "BRA"]
[BlackTeam "DEN"]
[WhiteClock "0:00:01"]
[BlackClock "0:00:47"]

1. Nf3 {[%clk 0:03:00]}  d6 {[%clk 0:02:54]} 2. d4 {[%clk 0:02:59]}  g6 {[%clk 0:02:55]} 3. c4 {[%clk 0:02:57]}  Bg7 {[%clk 0:02:55]} 4. e4 {[%clk 0:02:57]}  Nf6 {[%clk 0:02:56]} 5. Nc3 {[%clk 0:02:57]}  O-O {[%clk 0:02:57]} 6. h3 {[%clk 0:02:57]}  Re8 {[%clk 0:02:57]} 7. Be3 {[%clk 0:02:53]}  Nc6 {[%clk 0:02:57]} 8. d5 {[%clk 0:02:48]}  Ne5 {[%clk 0:02:57]} 9. Nxe5 {[%clk 0:02:47]}  dxe5 {[%clk 0:02:58]} 10. Be2 {[%clk 0:02:45]}  e6 {[%clk 0:02:58]} 11. O-O {[%clk 0:02:45]}  exd5 {[%clk 0:02:59]} 12. exd5 {[%clk 0:02:39]}  Nd7 {[%clk 0:02:52]} 13. c5 {[%clk 0:02:35]}  f5 {[%clk 0:02:46]} 14. b4 {[%clk 0:02:26]}  f4 {[%clk 0:02:34]} 15. Bd2 {[%clk 0:02:23]}  e4 {[%clk 0:02:35]} 16. Qb3 {[%clk 0:02:07]}  e3 {[%clk 0:02:25]} 17. fxe3 {[%clk 0:02:04]}  fxe3 {[%clk 0:02:26]} 18. Be1 {[%clk 0:01:57]}  Kh8 {[%clk 0:01:59]} 19. Rd1 {[%clk 0:01:56]}  Qg5 {[%clk 0:01:52]} 20. Qc4 {[%clk 0:01:37]}  Ne5 {[%clk 0:01:49]} 21. Qf4 {[%clk 0:01:35]}  Qxf4 {[%clk 0:01:30]} 22. Rxf4 {[%clk 0:01:35]}  Bh6 {[%clk 0:01:30]} 23. Rf1 {[%clk 0:01:26]}  Bf5 {[%clk 0:01:31]} 24. d6 {[%clk 0:01:09]}  cxd6 {[%clk 0:01:26]} 25. Rxd6 {[%clk 0:01:09]}  Rad8 {[%clk 0:01:20]} 26. Rxd8 {[%clk 0:00:48]}  Rxd8 {[%clk 0:01:20]} 27. Bh4 {[%clk 0:00:49]}  Rd2 {[%clk 0:01:10]} 28. Rd1 {[%clk 0:00:30]}  Nd3 {[%clk 0:00:56]} 29. a3 {[%clk 0:00:10]}  Nb2 {[%clk 0:00:56]} 30. Rf1 {[%clk 0:00:04]}  Bg7 {[%clk 0:00:56]} 31. Rc1 {[%clk 0:00:01]}  Bxc3 {[%clk 0:00:54]} 32. Rxc3 {[%clk 0:00:02]}  Rxe2 {[%clk 0:00:54]} 33. Bg5 {[%clk 0:00:03]}  Nd1 {[%clk 0:00:53]} 34. Rc1 {[%clk 0:00:03]}  Re1+ {[%clk 0:00:51]} 35. Kh2 {[%clk 0:00:03]}  e2 {[%clk 0:00:51]} 36. Bh4 {[%clk 0:00:01]}  Rf1 {[%clk 0:00:51]} 37. Rc4 {[%clk 0:00:01]}  Ne3 {[%clk 0:00:47]} 38. Rd4 {[%clk 0:00:01]}  e1=Q {[%clk 0:00:47]} 0-1

[Event "January 9 Early 2024"]
[Site "https://www.chess.com"]
[Date "2024.01.11"]
[Round "7"]
[White "Clawitter, Craig"]
[Black "Nowak, Lukasz"]
[Result "1-0"]
[Board "115"]
[TimeControl "180+1"]
[WhiteFideId "2023105"]
[BlackFideId "1166760"]
[WhiteElo "2241"]
[BlackElo "2007"]
[WhiteTeam "USA"]
[BlackTeam "POL"]
[WhiteClock "0:00:09"]
[BlackClock "0:00:17"]

1. e4 {[%clk 0:02:57]}  e6 {[%clk 0:02:58]} 2. d4 {[%clk 0:02:57]}  d5 {[%clk 0:02:58]} 3. e5 {[%clk 0:02:57]}  c5 {[%clk 0:02:55]} 4. c3 {[%clk 0:02:58]}  Nc6 {[%clk 0:02:55]} 5. Nf3 {[%clk 0:02:58]}  Bd7 {[%clk 0:02:54]} 6. Be2 {[%clk 0:02:58]}  Rc8 {[%clk 0:02:48]} 7. O-O {[%clk 0:02:58]}  h6 {[%clk 0:02:47]} 8. Bd3 {[%clk 0:02:42]}  cxd4 {[%clk 0:02:38]} 9. cxd4 {[%clk 0:02:42]}  Qb6 {[%clk 0:02:37]} 10. Nc3 {[%clk 0:02:31]}  Nxd4 {[%clk 0:02:24]} 11. Nxd4 {[%clk 0:02:32]}  Qxd4 {[%clk 0:02:22]} 12. Re1 {[%clk 0:02:10]}  a6 {[%clk 0:02:11]} 13. Be3 {[%clk 0:01:56]}  Qh4 {[%clk 0:02:05]} 14. Rc1 {[%clk 0:01:27]}  Ne7 {[%clk 0:01:43]} 15. Qb3 {[%clk 0:01:10]}  Nc6 {[%clk 0:01:20]} 16. Qxb7 {[%clk 0:00:38]}  Rb8 {[%clk 0:00:58]} 17. Qc7 {[%clk 0:00:35]}  Be7 {[%clk 0:00:48]} 18. Nxd5 {[%clk 0:00:18]}  exd5 {[%clk 0:00:44]} 19. Rxc6 {[%clk 0:00:18]}  Rc8 {[%clk 0:00:37]} 20. Qxc8+ {[%clk 0:00:15]}  Bxc8 {[%clk 0:00:36]} 21. Rxc8+ {[%clk 0:00:16]}  Bd8 {[%clk 0:00:31]} 22. Bb6 {[%clk 0:00:13]}  O-O {[%clk 0:00:29]} 23. Bc5 {[%clk 0:00:13]}  Be7 {[%clk 0:00:25]} 24. Bxa6 {[%clk 0:00:13]}  Rxc8 {[%clk 0:00:23]} 25. Bxe7 {[%clk 0:00:12]}  Qxe7 {[%clk 0:00:20]} 26. Bxc8 {[%clk 0:00:12]}  Qb4 {[%clk 0:00:18]} 27. Rd1 {[%clk 0:00:09]}  Qb3 {[%clk 0:00:17]} 28. axb3 {[%clk 0:00:09]} 1-0

[Event "January 9 Early 2024"]
[Site "https://www.chess.com"]
[Date "2024.01.11"]
[Round "7"]
[White "Nakamura, Hikaru"]
[Black "Sjugirov, Sanan"]
[Result "1-0"]
[Board "117"]
[TimeControl "180+1"]
[WhiteFideId "2016192"]
[BlackFideId "4189302"]
[WhiteElo "3257"]
[BlackElo "2967"]
[WhiteTeam "USA"]
[BlackTeam "HUN"]
[WhiteClock "0:00:24"]
[BlackClock "0:00:01"]

1. e4 {[%clk 0:03:00]}  e5 {[%clk 0:02:58]} 2. Bc4 {[%clk 0:03:01]}  Nf6 {[%clk 0:02:57]} 3. d3 {[%clk 0:03:01]}  Bc5 {[%clk 0:02:55]} 4. Nc3 {[%clk 0:02:55]}  d6 {[%clk 0:02:48]} 5. h3 {[%clk 0:02:49]}  O-O {[%clk 0:02:45]} 6. f4 {[%clk 0:02:48]}  exf4 {[%clk 0:02:32]} 7. Bxf4 {[%clk 0:02:49]}  c6 {[%clk 0:02:32]} 8. Bb3 {[%clk 0:02:46]}  d5 {[%clk 0:02:24]} 9. e5 {[%clk 0:02:30]}  Re8 {[%clk 0:02:24]} 10. d4 {[%clk 0:02:28]}  Bb4 {[%clk 0:02:22]} 11. Ne2 {[%clk 0:02:28]}  Ne4 {[%clk 0:02:12]} 12. O-O {[%clk 0:02:28]}  Bxc3 {[%clk 0:02:06]} 13. Nxc3 {[%clk 0:02:21]}  Nxc3 {[%clk 0:02:07]} 14. bxc3 {[%clk 0:02:22]}  Bf5 {[%clk 0:02:07]} 15. c4 {[%clk 0:02:16]}  Be4 {[%clk 0:01:55]} 16. cxd5 {[%clk 0:01:58]}  cxd5 {[%clk 0:01:56]} 17. Qg4 {[%clk 0:01:58]}  Nc6 {[%clk 0:01:52]} 18. Rae1 {[%clk 0:01:49]}  Qc8 {[%clk 0:01:18]} 19. Qd1 {[%clk 0:01:04]}  Na5 {[%clk 0:00:49]} 20. Rxe4 {[%clk 0:01:04]}  dxe4 {[%clk 0:00:42]} 21. Bd5 {[%clk 0:01:04]}  Rd8 {[%clk 0:00:22]} 22. Bxe4 {[%clk 0:01:05]}  Qc4 {[%clk 0:00:09]} 23. Be3 {[%clk 0:01:02]}  Nc6 {[%clk 0:00:10]} 24. Bd3 {[%clk 0:00:44]}  Qxa2 {[%clk 0:00:06]} 25. Qh5 {[%clk 0:00:32]}  g6 {[%clk 0:00:05]} 26. Qh4 {[%clk 0:00:32]}  Qe6 {[%clk 0:00:03]} 27. Rf6 {[%clk 0:00:31]}  Qe7 {[%clk 0:00:01]} 28. Bc4 {[%clk 0:00:26]}  Rf8 {[%clk 0:00:01]} 29. Bh6 {[%clk 0:00:25]}  Rae8 {[%clk 0:00:01]} 30. c3 {[%clk 0:00:24]} 1-0

[Event "January 9 Early 2024"]
[Site "https://www.chess.com"]
[Date "2024.01.11"]
[Round "7"]
[White "Vargas, Mauricio"]
[Black "Joubert, Dantelle"]
[Result "0-1"]
[Board "122"]
[TimeControl "180+1"]
[WhiteFideId "4404572"]
[BlackFideId "14310813"]
[WhiteElo "1834"]
[BlackElo "2053"]
[WhiteTeam "COL"]
[BlackTeam "RSA"]
[WhiteClock "0:00:01"]
[BlackClock "0:00:41"]

1. e4 {[%clk 0:02:59]}  e5 {[%clk 0:02:59]} 2. Nf3 {[%clk 0:02:59]}  Nc6 {[%clk 0:02:58]} 3. d4 {[%clk 0:02:59]}  exd4 {[%clk 0:02:58]} 4. Bc4 {[%clk 0:03:00]}  Bc5 {[%clk 0:02:57]} 5. c3 {[%clk 0:03:00]}  d3 {[%clk 0:02:56]} 6. Qxd3 {[%clk 0:02:58]}  d6 {[%clk 0:02:56]} 7. O-O {[%clk 0:02:58]}  Nf6 {[%clk 0:02:56]} 8. Re1 {[%clk 0:02:55]}  O-O {[%clk 0:02:55]} 9. Bg5 {[%clk 0:02:52]}  h6 {[%clk 0:02:55]} 10. Bh4 {[%clk 0:02:51]}  Bg4 {[%clk 0:02:54]} 11. Nbd2 {[%clk 0:02:49]}  Ne5 {[%clk 0:02:37]} 12. Nxe5 {[%clk 0:02:41]}  dxe5 {[%clk 0:02:37]} 13. Qc2 {[%clk 0:02:29]}  Be7 {[%clk 0:02:28]} 14. f3 {[%clk 0:02:18]}  Bd7 {[%clk 0:02:19]} 15. Rad1 {[%clk 0:02:17]}  Qc8 {[%clk 0:02:18]} 16. Bg3 {[%clk 0:02:13]}  Bd6 {[%clk 0:02:15]} 17. Bb3 {[%clk 0:02:13]}  Be6 {[%clk 0:02:13]} 18. Nc4 {[%clk 0:02:11]}  Bc5+ {[%clk 0:02:05]} 19. Kh1 {[%clk 0:02:09]}  Bxc4 {[%clk 0:01:54]} 20. Bxc4 {[%clk 0:02:08]}  Bd6 {[%clk 0:01:54]} 21. Bf2 {[%clk 0:01:36]}  Nh5 {[%clk 0:01:50]} 22. Be3 {[%clk 0:01:33]}  Kh8 {[%clk 0:01:46]} 23. Qf2 {[%clk 0:01:28]}  f5 {[%clk 0:01:42]} 24. exf5 {[%clk 0:01:11]}  Nf4 {[%clk 0:01:21]} 25. g3 {[%clk 0:01:06]}  Nh3 {[%clk 0:01:19]} 26. Qg2 {[%clk 0:01:05]}  Qxf5 {[%clk 0:01:18]} 27. g4 {[%clk 0:00:54]}  Qxf3 {[%clk 0:01:17]} 28. Rd2 {[%clk 0:00:20]}  Qxg2+ {[%clk 0:01:11]} 29. Rxg2 {[%clk 0:00:19]}  Nf4 {[%clk 0:01:12]} 30. Rg3 {[%clk 0:00:14]}  Rae8 {[%clk 0:01:04]} 31. g5 {[%clk 0:00:13]}  h5 {[%clk 0:00:56]} 32. g6 {[%clk 0:00:08]}  Rf5 {[%clk 0:00:47]} 33. Bf7 {[%clk 0:00:03]}  Rd8 {[%clk 0:00:41]} 34. Bxf4 {[%clk 0:00:01]}  exf4 {[%clk 0:00:41]} 0-1

[Event "January 9 Early 2024"]
[Site "https://www.chess.com"]
[Date "2024.01.11"]
[Round "7"]
[White "Hejazipour, Mitra"]
[Black "Sakun, Volodymyr"]
[Result "0-1"]
[Board "124"]
[TimeControl "180+1"]
[WhiteFideId "12505951"]
[BlackFideId "14114062"]
[WhiteElo "2450"]
[BlackElo "2618"]
[WhiteTeam "FRA"]
[BlackTeam "UKR"]
[WhiteClock "0:00:44"]
[BlackClock "0:00:17"]

1. Nf3 {[%clk 0:03:00]}  Nf6 {[%clk 0:02:59]} 2. c4 {[%clk 0:03:00]}  e6 {[%clk 0:02:58]} 3. Nc3 {[%clk 0:03:00]}  d5 {[%clk 0:02:58]} 4. cxd5 {[%clk 0:02:59]}  exd5 {[%clk 0:02:57]} 5. d4 {[%clk 0:03:00]}  Be7 {[%clk 0:02:57]} 6. Bg5 {[%clk 0:03:00]}  c6 {[%clk 0:02:58]} 7. e3 {[%clk 0:03:01]}  Bf5 {[%clk 0:02:57]} 8. Bd3 {[%clk 0:02:57]}  Bxd3 {[%clk 0:02:56]} 9. Qxd3 {[%clk 0:02:58]}  Nbd7 {[%clk 0:02:56]} 10. O-O {[%clk 0:02:58]}  O-O {[%clk 0:02:55]} 11. Bh4 {[%clk 0:02:54]}  Re8 {[%clk 0:02:54]} 12. Rab1 {[%clk 0:02:52]}  a5 {[%clk 0:02:52]} 13. h3 {[%clk 0:02:48]}  Ne4 {[%clk 0:02:51]} 14. Bxe7 {[%clk 0:02:46]}  Qxe7 {[%clk 0:02:52]} 15. Na4 {[%clk 0:02:44]}  g5 {[%clk 0:02:46]} 16. Rfc1 {[%clk 0:02:43]}  h5 {[%clk 0:02:45]} 17. Nd2 {[%clk 0:02:40]}  g4 {[%clk 0:02:44]} 18. hxg4 {[%clk 0:02:39]}  hxg4 {[%clk 0:02:44]} 19. Nxe4 {[%clk 0:02:39]}  Qxe4 {[%clk 0:02:31]} 20. Qxe4 {[%clk 0:02:39]}  Rxe4 {[%clk 0:02:30]} 21. Nc5 {[%clk 0:02:31]}  Nxc5 {[%clk 0:02:25]} 22. Rxc5 {[%clk 0:02:32]}  Kg7 {[%clk 0:02:20]} 23. Kh2 {[%clk 0:02:31]}  f5 {[%clk 0:01:52]} 24. Kg3 {[%clk 0:02:30]}  Kg6 {[%clk 0:01:52]} 25. Rh1 {[%clk 0:02:19]}  Rf8 {[%clk 0:01:31]} 26. Rxa5 {[%clk 0:02:17]}  f4+ {[%clk 0:01:31]} 27. exf4 {[%clk 0:02:16]}  Rexf4 {[%clk 0:01:32]} 28. Rf1 {[%clk 0:02:14]}  Rxd4 {[%clk 0:01:30]} 29. Ra3 {[%clk 0:02:07]}  Kg5 {[%clk 0:01:14]} 30. Re3 {[%clk 0:02:03]}  Rd2 {[%clk 0:01:11]} 31. Rb3 {[%clk 0:01:59]}  b5 {[%clk 0:01:03]} 32. a3 {[%clk 0:01:59]}  Rf4 {[%clk 0:00:59]} 33. Rc3 {[%clk 0:01:45]}  Rc4 {[%clk 0:00:57]} 34. Rxc4 {[%clk 0:01:44]}  dxc4 {[%clk 0:00:45]} 35. Re1 {[%clk 0:01:43]}  Rxb2 {[%clk 0:00:43]} 36. Re5+ {[%clk 0:01:42]}  Kf6 {[%clk 0:00:38]} 37. Rc5 {[%clk 0:01:42]}  Rb3+ {[%clk 0:00:29]} 38. Kxg4 {[%clk 0:01:41]}  Rxa3 {[%clk 0:00:30]} 39. f4 {[%clk 0:01:40]}  c3 {[%clk 0:00:26]} 40. Rxc6+ {[%clk 0:01:40]}  Ke7 {[%clk 0:00:26]} 41. Kf5 {[%clk 0:01:08]}  b4 {[%clk 0:00:25]} 42. Ke4 {[%clk 0:01:05]}  Ra2 {[%clk 0:00:21]} 43. g4 {[%clk 0:00:51]}  c2 {[%clk 0:00:21]} 44. Kd3 {[%clk 0:00:51]}  b3 {[%clk 0:00:21]} 45. Rc3 {[%clk 0:00:47]}  Ra1 {[%clk 0:00:17]} 46. Rxc2 {[%clk 0:00:43]}  bxc2 {[%clk 0:00:17]} 47. Kxc2 {[%clk 0:00:44]}  Ra4 {[%clk 0:00:17]} 0-1

[Event "January 9 Early 2024"]
[Site "https://www.chess.com"]
[Date "2024.01.11"]
[Round "7"]
[White "Mirzoev, Azer"]
[Black "Boruchovsky, Avital"]
[Result "1/2-1/2"]
[Board "127"]
[TimeControl "180+1"]
[WhiteFideId "13400304"]
[BlackFideId "2800055"]
[WhiteElo "2640"]
[BlackElo "2772"]
[WhiteTeam "AZE"]
[BlackTeam "ISR"]
[WhiteClock "0:00:27"]
[BlackClock "0:00:02"]

1. d4 {[%clk 0:03:00]}  Nf6 {[%clk 0:02:58]} 2. Nf3 {[%clk 0:03:00]}  g6 {[%clk 0:02:59]} 3. c4 {[%clk 0:03:00]}  Bg7 {[%clk 0:02:59]} 4. Nc3 {[%clk 0:03:00]}  O-O {[%clk 0:02:59]} 5. Bg5 {[%clk 0:02:59]}  c5 {[%clk 0:02:55]} 6. e3 {[%clk 0:02:57]}  cxd4 {[%clk 0:02:54]} 7. Nxd4 {[%clk 0:02:57]}  Nc6 {[%clk 0:02:51]} 8. Bh4 {[%clk 0:02:55]}  d5 {[%clk 0:02:43]} 9. Rc1 {[%clk 0:02:11]}  Nxd4 {[%clk 0:02:31]} 10. Qxd4 {[%clk 0:02:09]}  Qa5 {[%clk 0:02:20]} 11. Bxf6 {[%clk 0:01:48]}  Bxf6 {[%clk 0:02:20]} 12. Qxd5 {[%clk 0:01:48]}  Bxc3+ {[%clk 0:02:17]} 13. Rxc3 {[%clk 0:01:47]}  Qxa2 {[%clk 0:02:18]} 14. Qd2 {[%clk 0:01:47]}  Bf5 {[%clk 0:02:10]} 15. Qc1 {[%clk 0:01:44]}  Rfd8 {[%clk 0:01:26]} 16. Be2 {[%clk 0:01:42]}  Qa5 {[%clk 0:01:19]} 17. O-O {[%clk 0:01:40]}  Qc5 {[%clk 0:01:18]} 18. h3 {[%clk 0:01:24]}  a5 {[%clk 0:01:18]} 19. Rd1 {[%clk 0:01:21]}  b6 {[%clk 0:01:03]} 20. Bf3 {[%clk 0:01:17]}  Rac8 {[%clk 0:01:02]} 21. Rd5 {[%clk 0:01:13]}  Qc7 {[%clk 0:00:52]} 22. Qd2 {[%clk 0:01:02]}  Be6 {[%clk 0:00:51]} 23. Rd4 {[%clk 0:00:59]}  Rxd4 {[%clk 0:00:45]} 24. exd4 {[%clk 0:00:58]}  Qd6 {[%clk 0:00:44]} 25. d5 {[%clk 0:00:56]}  Bf5 {[%clk 0:00:39]} 26. Qe3 {[%clk 0:00:55]}  Rc7 {[%clk 0:00:38]} 27. Bg4 {[%clk 0:00:52]}  Bxg4 {[%clk 0:00:36]} 28. hxg4 {[%clk 0:00:53]}  a4 {[%clk 0:00:29]} 29. g5 {[%clk 0:00:51]}  Qb4 {[%clk 0:00:16]} 30. Qf4 {[%clk 0:00:31]}  Qd6 {[%clk 0:00:02]} 31. Qd4 {[%clk 0:00:29]}  Qb4 {[%clk 0:00:02]} 32. Qf4 {[%clk 0:00:28]}  Qd6 {[%clk 0:00:02]} 33. Qd4 {[%clk 0:00:28]}  Qb4 {[%clk 0:00:02]} 34. Qf4 {[%clk 0:00:27]} 1/2-1/2

[Event "January 9 Early 2024"]
[Site "https://www.chess.com"]
[Date "2024.01.11"]
[Round "7"]
[White "Zhu, Jiner"]
[Black "Kjartansson, David"]
[Result "1-0"]
[Board "128"]
[TimeControl "180+1"]
[WhiteFideId "8608059"]
[BlackFideId "2301130"]
[WhiteElo "2616"]
[BlackElo "2429"]
[WhiteTeam "CHN"]
[BlackTeam "ISL"]
[WhiteClock "0:00:24"]
[BlackClock "0:00:02"]

1. c4 {[%clk 0:03:00]}  c5 {[%clk 0:02:57]} 2. Nc3 {[%clk 0:03:00]}  Nc6 {[%clk 0:02:56]} 3. Nf3 {[%clk 0:03:00]}  g6 {[%clk 0:02:57]} 4. e3 {[%clk 0:02:59]}  Nf6 {[%clk 0:02:53]} 5. d4 {[%clk 0:02:59]}  cxd4 {[%clk 0:02:54]} 6. exd4 {[%clk 0:02:59]}  d5 {[%clk 0:02:54]} 7. cxd5 {[%clk 0:02:59]}  Nxd5 {[%clk 0:02:54]} 8. Bc4 {[%clk 0:03:00]}  Nxc3 {[%clk 0:02:53]} 9. bxc3 {[%clk 0:02:59]}  e6 {[%clk 0:02:51]} 10. Bg5 {[%clk 0:02:45]}  Be7 {[%clk 0:02:49]} 11. Bh6 {[%clk 0:02:44]}  Bf8 {[%clk 0:02:49]} 12. Bxf8 {[%clk 0:02:44]}  Kxf8 {[%clk 0:02:49]} 13. O-O {[%clk 0:02:45]}  Kg7 {[%clk 0:02:49]} 14. a4 {[%clk 0:02:38]}  Na5 {[%clk 0:02:46]} 15. Ba2 {[%clk 0:02:37]}  b6 {[%clk 0:02:42]} 16. Ne5 {[%clk 0:02:29]}  Bb7 {[%clk 0:02:39]} 17. Re1 {[%clk 0:02:29]}  Rc8 {[%clk 0:02:35]} 18. c4 {[%clk 0:02:28]}  Qd6 {[%clk 0:02:16]} 19. Qd2 {[%clk 0:02:27]}  Rhd8 {[%clk 0:02:11]} 20. Rad1 {[%clk 0:02:19]}  h5 {[%clk 0:01:46]} 21. h4 {[%clk 0:02:14]}  f6 {[%clk 0:01:36]} 22. c5 {[%clk 0:01:15]}  bxc5 {[%clk 0:00:43]} 23. Qxa5 {[%clk 0:01:10]}  fxe5 {[%clk 0:00:42]} 24. dxc5 {[%clk 0:01:03]}  Qxd1 {[%clk 0:00:39]} 25. Rxd1 {[%clk 0:01:04]}  Rxd1+ {[%clk 0:00:40]} 26. Kh2 {[%clk 0:01:04]}  Bd5 {[%clk 0:00:29]} 27. Qxa7+ {[%clk 0:00:59]}  Kf6 {[%clk 0:00:27]} 28. Qd7 {[%clk 0:00:33]}  Ra8 {[%clk 0:00:03]} 29. c6 {[%clk 0:00:28]}  Bb3 {[%clk 0:00:01]} 30. Qb7 {[%clk 0:00:24]}  Bxa2 {[%clk 0:00:01]} 31. Qxa8 {[%clk 0:00:24]}  Bd5 {[%clk 0:00:02]} 32. Qf8# {[%clk 0:00:24]} 1-0

[Event "January 9 Early 2024"]
[Site "https://www.chess.com"]
[Date "2024.01.11"]
[Round "7"]
[White "Babayeva, Nasrin"]
[Black "Santeramo, Alessia Carmen"]
[Result "0-1"]
[Board "130"]
[TimeControl "180+1"]
[WhiteFideId "13416626"]
[BlackFideId "850810"]
[WhiteElo "1848"]
[BlackElo "2318"]
[WhiteTeam "AZE"]
[BlackTeam "ITA"]
[WhiteClock "0:00:04"]
[BlackClock "0:00:15"]

1. c4 {[%clk 0:03:00]}  e5 {[%clk 0:02:59]} 2. g3 {[%clk 0:02:55]}  Nc6 {[%clk 0:02:47]} 3. Bg2 {[%clk 0:02:56]}  Bc5 {[%clk 0:02:46]} 4. Nc3 {[%clk 0:02:53]}  d6 {[%clk 0:02:42]} 5. e3 {[%clk 0:02:52]}  a6 {[%clk 0:02:42]} 6. Nge2 {[%clk 0:02:52]}  Ba7 {[%clk 0:02:43]} 7. d4 {[%clk 0:02:51]}  h5 {[%clk 0:02:42]} 8. h4 {[%clk 0:02:49]}  Bg4 {[%clk 0:02:37]} 9. d5 {[%clk 0:02:40]}  Nce7 {[%clk 0:02:34]} 10. O-O {[%clk 0:02:38]}  Qd7 {[%clk 0:02:33]} 11. Kh2 {[%clk 0:02:34]}  g5 {[%clk 0:02:32]} 12. f3 {[%clk 0:02:20]}  gxh4 {[%clk 0:01:36]} 13. fxg4 {[%clk 0:02:20]}  hxg4 {[%clk 0:01:37]} 14. Qe1 {[%clk 0:02:03]}  Nf5 {[%clk 0:01:34]} 15. gxh4 {[%clk 0:01:35]}  Rxh4+ {[%clk 0:01:31]} 16. Kg1 {[%clk 0:01:33]}  Nxe3 {[%clk 0:00:45]} 17. Qxh4 {[%clk 0:01:16]}  Nf5+ {[%clk 0:00:37]} 18. Qf2 {[%clk 0:01:13]}  Bxf2+ {[%clk 0:00:33]} 19. Rxf2 {[%clk 0:01:12]}  g3 {[%clk 0:00:33]} 20. Rf1 {[%clk 0:01:01]}  Nge7 {[%clk 0:00:30]} 21. Bh3 {[%clk 0:00:52]}  O-O-O {[%clk 0:00:29]} 22. Ne4 {[%clk 0:00:39]}  Rh8 {[%clk 0:00:26]} 23. Nf6 {[%clk 0:00:32]}  Qa4 {[%clk 0:00:17]} 24. Bxf5+ {[%clk 0:00:28]}  Nxf5 {[%clk 0:00:18]} 25. Rxf5 {[%clk 0:00:28]}  Qc2 {[%clk 0:00:18]} 26. Nxg3 {[%clk 0:00:07]}  Qh2+ {[%clk 0:00:14]} 27. Kf1 {[%clk 0:00:07]}  Qxg3 {[%clk 0:00:14]} 28. Bd2 {[%clk 0:00:04]}  Rh1+ {[%clk 0:00:15]} 0-1